bitfinex-derivatives/quotes_BTCF0:USTF0_20241130
["timestamp","ask_amount","ask_price","bid_price","bid_amount"]
[1732978519834,0.05576,96556.0,96554.0,0.00011058]
[1732978520338,0.51664313,96555.0,96554.0,5.8e-07]
[1732978521041,0.9119828,96555.0,96554.0,5.8e-07]
[1732978521236,0.84565914,96555.0,96554.0,5.8e-07]
[1732978521437,0.051772,96533.0,96532.0,0.15708]
[1732978521642,0.412572,96533.0,96532.0,0.15708]
[1732978522241,0.412572,96533.0,96532.0,0.0308]
[1732978522539,0.412572,96533.0,96528.0,0.0315]
[1732978522540,0.051774,96529.0,96528.0,0.0315]
[1732978532737,0.051774,96529.0,96521.0,0.03089126]
[1732978532942,0.412578,96522.0,96521.0,0.03089126]
[1732978533150,0.43090205,96522.0,96521.0,0.15985126]
[1732978533346,0.43090205,96522.0,96521.0,0.03089126]
[1732978533540,0.43090205,96522.0,96521.0,0.15985126]
[1732978534152,0.43090205,96522.0,96521.0,0.16285126]
[1732978534542,0.43090205,96522.0,96521.0,0.03589126]
[1732978535150,0.43090205,96522.0,96521.0,0.03389126]
[1732978535445,0.412578,96522.0,96521.0,0.03589126]
[1732978535648,0.43170526,96522.0,96521.0,2.6e-07]
[1732978535841,0.43170496,96522.0,96521.0,2.6e-07]
[1732978536036,0.051784,96510.0,96509.0,0.031]
[1732978536242,0.051784,96510.0,96509.0,0.15996]
[1732978536243,0.412584,96510.0,96509.0,0.15996]
[1732978536543,0.43171096,96510.0,96509.0,0.031]
[1732978536746,0.43180791,96510.0,96509.0,0.031]
[1732978537448,0.43380791,96510.0,96509.0,0.031]
[1732978538236,0.41468095,96510.0,96509.0,0.031]
[1732978538438,0.43396454,96510.0,96509.0,0.031]
[1732978539144,0.43696454,96510.0,96509.0,0.031]
[1732978540538,0.41768095,96510.0,96509.0,0.031]
[1732978540739,0.43704826,96510.0,96509.0,0.031]
[1732978541143,0.41768095,96510.0,96509.0,0.031]
[1732978542741,0.05178,96518.0,96509.0,0.031]
[1732978542938,0.3608,96530.0,96513.0,0.3608]
[1732978543139,0.3608,96530.0,96521.0,0.051778]
[1732978543341,0.3608,96530.0,96522.0,0.129]
[1732978543342,0.051777,96524.0,96522.0,0.129]
[1732978543746,0.00010847,96523.0,96522.0,0.129]
[1732978544647,0.00010847,96523.0,96522.0,0.12896]
[1732978545151,0.05288547,96523.0,96522.0,0.12896]
[1732978545854,0.05188547,96523.0,96522.0,0.12896]
[1732978546041,0.00010847,96523.0,96519.0,0.0319]
[1732978546240,0.051778,96522.0,96520.0,0.12896]
[1732978547650,0.052778,96522.0,96520.0,0.12896]
[1732978548351,0.055778,96522.0,96520.0,0.12896]
[1732978554058,0.055778,96522.0,96521.0,0.12896]
[1732978555054,0.052778,96522.0,96521.0,0.12896]
[1732978555257,0.055778,96522.0,96521.0,0.12896]
[1732978555954,0.057778,96522.0,96521.0,0.12896]
[1732978557362,0.051781,96517.0,96502.0,0.051788]
[1732978557667,0.051781,96517.0,96500.0,0.1]
[1732978557668,0.051784,96511.0,96510.0,0.12996]
[1732978558464,0.003,96522.0,96510.0,0.12996]
[1732978558660,0.051781,96516.0,96514.0,0.412582]
[1732978558854,0.051781,96516.0,96515.0,0.032]
[1732978559569,0.00010847,96523.0,96518.0,0.05178]
[1732978559864,0.001,96522.0,96519.0,0.12996]
[1732978560165,0.01927974,96529.0,96527.0,0.051775]
[1732978560364,0.01927974,96540.0,96539.0,0.051769]
[1732978560552,0.01902874,96551.0,96540.0,0.051768]
[1732978560752,0.051766,96544.0,96540.0,0.051768]
[1732978561159,7.451e-05,96545.0,96540.0,0.051768]
[1732978562065,0.0045544,96542.0,96540.0,0.051768]
[1732978563268,0.0563214,96542.0,96540.0,0.051768]
[1732978563869,0.0563214,96542.0,96540.0,0.0326]
[1732978564062,0.0563214,96542.0,96541.0,0.12992]
[1732978565778,0.0573214,96542.0,96541.0,0.12992]
[1732978566867,0.051774,96530.0,96529.0,0.0326]
[1732978567062,0.051774,96530.0,96529.0,0.16252]
[1732978569070,0.052774,96530.0,96529.0,0.16252]
[1732978570865,0.052774,96530.0,96529.0,0.0326]
[1732978571065,0.052774,96530.0,96529.0,0.16252]
[1732978572979,0.052774,96530.0,96529.0,0.0326]
[1732978573279,0.052774,96530.0,96529.0,0.16252]
[1732978578582,0.052774,96530.0,96529.0,0.0326]
[1732978578783,0.052774,96530.0,96529.0,0.16252]
[1732978584286,0.052774,96530.0,96529.0,0.0326]
[1732978584486,0.052774,96530.0,96529.0,0.16252]
[1732978585885,0.052774,96530.0,96529.0,0.214294]
[1732978588387,0.01858444,96533.0,96529.0,0.16252]
[1732978588578,0.00155419,96550.0,96544.0,0.051766]
[1732978588781,0.051765,96546.0,96544.0,0.541406]
[1732978589295,0.00155419,96550.0,96544.0,0.541406]
[1732978589687,0.00407451,96545.0,96544.0,0.541406]
[1732978591496,0.00407451,96545.0,96544.0,0.542406]
[1732978595087,0.00407451,96545.0,96544.0,0.55462456]
[1732978599497,0.00155419,96550.0,96549.0,0.051763]
[1732978600596,0.00155419,96550.0,96549.0,0.052763]
[1732978600895,0.00655419,96550.0,96549.0,0.052763]
[1732978602994,0.005,96550.0,96549.0,0.052763]
[1732978606987,0.005,96550.0,96549.0,0.413563]
[1732978614900,0.005,96550.0,96549.0,0.052763]
[1732978615102,0.005,96550.0,96549.0,0.413563]
[1732978620102,0.005,96550.0,96549.0,0.43427831]
[1732978623003,9.037e-05,96559.0,96558.0,0.051759]
[1732978623203,9.037e-05,96559.0,96558.0,0.540239]
[1732978624206,0.00209037,96559.0,96558.0,0.541239]
[1732978624398,0.00209037,96559.0,96558.0,0.542239]
[1732978625512,0.00209037,96559.0,96558.0,0.541239]
[1732978626804,0.03355398,96578.0,96577.0,0.051748]
[1732978627008,0.00155398,96578.0,96577.0,0.179428]
[1732978628005,0.00165242,96578.0,96577.0,0.180428]
[1732978628210,0.00165242,96578.0,96577.0,0.181428]
[1732978628614,0.00165242,96578.0,96577.0,0.179428]
[1732978628906,0.00165242,96578.0,96577.0,0.180428]
[1732978633323,0.00165242,96578.0,96577.0,0.19248503]
[1732978638722,0.00165242,96578.0,96577.0,0.14073703]
[1732978638923,0.00165242,96578.0,96577.0,0.12868]
[1732978639113,0.06465242,96578.0,96577.0,0.12864]
[1732978639309,0.09795242,96578.0,96577.0,0.12864]
[1732978640621,0.09795242,96578.0,96577.0,0.001]
[1732978648613,0.25405824,96578.0,96577.0,0.001]
[1732978649215,0.051758,96559.0,96558.0,0.48756]
[1732978649417,0.051758,96559.0,96558.0,0.12676]
[1732978649920,0.05176,96556.0,96555.0,0.00155349]
[1732978650120,0.05176,96556.0,96555.0,0.12831349]
[1732978650316,0.05176,96556.0,96555.0,0.00155349]
[1732978650517,0.05176,96556.0,96549.0,0.00012903]
[1732978650518,0.051763,96550.0,96549.0,0.00012903]
[1732978650723,0.412563,96550.0,96549.0,0.00012903]
[1732978652117,0.051767,96542.0,96541.0,0.12676]
[1732978652316,0.412567,96542.0,96531.0,0.1268]
[1732978652616,0.051772,96532.0,96530.0,0.05407133]
[1732978652814,0.051774,96530.0,96529.0,0.47912]
[1732978653017,0.051774,96530.0,96529.0,0.4786]
[1732978653219,0.051774,96530.0,96529.0,0.6054]
[1732978654130,0.051774,96530.0,96529.0,0.6074]
[1732978661822,0.051774,96530.0,96529.0,0.4806]
[1732978662023,0.051774,96530.0,96529.0,0.6074]
[1732978663330,0.051774,96530.0,96529.0,0.4806]
[1732978663634,0.051774,96530.0,96529.0,0.6074]
[1732978664222,0.051774,96530.0,96529.0,0.4806]
[1732978664430,0.051775,96527.0,96526.0,5.9e-07]
[1732978664630,0.051775,96527.0,96515.0,0.1268]
[1732978664631,0.051776,96525.0,96515.0,0.1268]
[1732978664931,0.051784,96511.0,96510.0,0.1268]
[1732978665633,0.05190075,96511.0,96510.0,0.1268]
[1732978665829,0.05190075,96511.0,96503.0,0.0623]
[1732978665830,0.051788,96504.0,96503.0,0.0623]
[1732978666029,0.051788,96504.0,96503.0,0.1891]
[1732978667135,0.051788,96504.0,96503.0,0.18914]
[1732978668130,0.051788,96504.0,96503.0,0.19314]
[1732978668531,0.051788,96504.0,96503.0,0.0663]
[1732978668832,0.051788,96504.0,96503.0,0.19614]
[1732978669033,0.051786,96506.0,96505.0,0.051787]
[1732978669230,0.00011675,96511.0,96503.0,0.19614]
[1732978669231,0.051788,96504.0,96503.0,0.19614]
[1732978670129,0.051788,96504.0,96503.0,0.007]
[1732978671039,0.051788,96504.0,96503.0,0.004]
[1732978671232,0.051788,96504.0,96503.0,0.12684]
[1732978672034,0.052788,96504.0,96503.0,0.12684]
[1732978672233,0.052788,96504.0,96501.0,0.00010732]
[1732978672234,0.001,96504.0,96501.0,0.00010732]
[1732978672434,0.051789,96502.0,96501.0,0.00010732]
[1732978672741,0.051789,96502.0,96501.0,0.12694732]
[1732978674142,0.051789,96502.0,96501.0,0.00010732]
[1732978674433,0.052789,96502.0,96501.0,0.00010732]
[1732978675531,0.20835655,96502.0,96501.0,0.00010732]
[1732978675928,0.20835655,96502.0,96500.0,0.043752]
[1732978676128,0.4241,96501.0,96500.0,1e-06]
[1732978676638,0.57886101,96501.0,96500.0,1e-06]
[1732978678943,0.051789,96502.0,96500.0,1e-06]
[1732978679242,0.001,96501.0,96500.0,1e-06]
[1732978680144,0.051789,96502.0,96500.0,1e-06]
[1732978680443,0.052789,96502.0,96500.0,1e-06]
[1732978682144,0.051789,96502.0,96500.0,1e-06]
[1732978682347,0.001,96501.0,96500.0,1e-06]
[1732978683045,0.3618,96501.0,96500.0,1e-06]
[1732978683250,0.3608,96501.0,96500.0,1e-06]
[1732978684941,0.3618,96501.0,96500.0,1e-06]
[1732978688142,0.394,96501.0,96500.0,1e-06]
[1732978691253,0.37391551,96501.0,96500.0,1e-06]
[1732978694154,0.001,96501.0,96500.0,1e-06]
[1732978706949,0.052789,96501.0,96500.0,1e-06]
[1732978715264,0.1481715,96501.0,96500.0,1e-06]
[1732978715461,0.3033308,96501.0,96500.0,1e-06]
[1732978716465,0.2079483,96501.0,96500.0,1e-06]
[1732978735766,0.2099483,96501.0,96500.0,1e-06]
[1732978736273,0.2069483,96501.0,96500.0,1e-06]
[1732978736472,0.2099483,96501.0,96500.0,1e-06]
[1732978739373,0.23067944,96501.0,96500.0,1e-06]
[1732978739967,0.23067944,96501.0,96491.0,0.0331]
[1732978739968,0.051793,96493.0,96491.0,0.0331]
[1732978740166,0.0518,96480.0,96479.0,0.0314]
[1732978740874,0.0518,96480.0,96479.0,0.16296]
[1732978741270,0.0518,96480.0,96479.0,0.0314]
[1732978741573,0.0518,96480.0,96479.0,0.16296]
[1732978741777,0.0518,96480.0,96479.0,0.0314]
[1732978741972,0.0518,96480.0,96479.0,0.16296]
[1732978742573,0.0518,96480.0,96479.0,0.16796]
[1732978742879,0.0518,96480.0,96479.0,0.0364]
[1732978743176,0.0518,96480.0,96465.0,0.18609283]
[1732978743177,0.051808,96465.0,96464.0,0.18609283]
[1732978743766,0.3608,96470.0,96462.0,0.18609283]
[1732978743968,0.05181,96463.0,96462.0,0.18609283]
[1732978744465,0.05181,96463.0,96462.0,0.13156]
[1732978745369,0.05181,96463.0,96462.0,0.1316]
[1732978746471,0.05181,96463.0,96462.0,0.006]
[1732978746776,0.3608,96470.0,96462.0,0.1376]
[1732978746985,0.02073114,96501.0,96478.0,0.051801]
[1732978746986,0.00211565,96483.0,96478.0,0.051801]
[1732978747172,0.0518,96480.0,96479.0,0.194]
[1732978747577,0.00155564,96483.0,96481.0,0.0518]
[1732978747778,0.051799,96483.0,96481.0,0.0518]
[1732978748077,0.3608,96497.0,96479.0,0.194]
[1732978748279,0.051795,96490.0,96487.0,0.05413827]
[1732978748581,0.051795,96490.0,96488.0,0.1316]
[1732978749680,0.002,96490.0,96489.0,0.3608]
[1732978750075,0.002,96490.0,96489.0,0.3938]
[1732978750273,0.051793,96494.0,96489.0,0.3938]
[1732978750678,0.051793,96493.0,96492.0,0.051794]
[1732978752679,0.051792,96497.0,96495.0,0.051792]
[1732978752878,0.051792,96497.0,96496.0,0.13156]
[1732978753885,0.055792,96497.0,96496.0,0.13156]
[1732978754287,0.055792,96497.0,96496.0,0.16276]
[1732978755487,0.051792,96497.0,96496.0,0.16276]
[1732978755685,0.056792,96497.0,96496.0,0.16276]
[1732978755889,0.056792,96497.0,96496.0,0.13156]
[1732978756082,0.056792,96497.0,96490.0,0.051795]
[1732978756380,0.005,96497.0,96491.0,0.13156]
[1732978756691,0.051794,96492.0,96491.0,0.13156]
[1732978758488,0.051795,96490.0,96489.0,0.033]
[1732978758790,0.051795,96490.0,96489.0,0.16456]
[1732978759284,0.051795,96490.0,96489.0,0.13156]
[1732978760077,0.052795,96490.0,96489.0,0.13156]
[1732978761288,0.002,96490.0,96489.0,0.544155]
[1732978762185,0.002,96490.0,96489.0,0.412595]
[1732978762390,0.002,96490.0,96489.0,0.544155]
[1732978763186,0.051795,96491.0,96489.0,0.544155]
[1732978763488,0.003,96490.0,96489.0,0.544155]
[1732978763881,0.003,96490.0,96489.0,0.13156]
[1732978764387,0.051795,96491.0,96489.0,0.13156]
[1732978764588,0.054795,96491.0,96489.0,0.13156]
[1732978766189,0.003,96490.0,96489.0,0.13156]
[1732978766783,0.054795,96491.0,96489.0,0.13156]
[1732978766988,0.003,96491.0,96489.0,0.13156]
[1732978767187,0.003,96491.0,96490.0,0.051795]
[1732978767994,0.003,96490.0,96489.0,0.183356]
[1732978768384,0.06914787,96503.0,96501.0,0.051789]
[1732978768589,0.00155497,96512.0,96510.0,0.051784]
[1732978768791,0.00155497,96512.0,96510.0,0.544144]
[1732978770386,0.00311675,96511.0,96510.0,0.544144]
[1732978770992,0.00011675,96511.0,96510.0,0.544144]
[1732978771184,0.00411675,96511.0,96510.0,0.544144]
[1732978772886,0.00411675,96511.0,96510.0,0.545144]
[1732978780098,0.0311,96529.0,96528.0,0.051775]
[1732978780294,0.0311,96529.0,96528.0,0.182455]
[1732978781203,0.03122354,96529.0,96528.0,0.182455]
[1732978782293,0.03122354,96529.0,96528.0,0.13068]
[1732978782489,0.03522354,96529.0,96528.0,0.13168]
[1732978794094,0.03522354,96529.0,96528.0,0.13164]
[1732978796103,0.08699754,96529.0,96528.0,0.13164]
[1732978796901,0.08699754,96529.0,96528.0,0.001]
[1732978800405,0.08699754,96529.0,96528.0,0.052775]
[1732978801398,0.08699754,96529.0,96528.0,0.001]
[1732978802107,0.08699754,96529.0,96528.0,0.13]
[1732978802296,0.08699754,96529.0,96528.0,0.001]
[1732978807513,0.08699754,96529.0,96502.0,0.051789]
[1732978807514,0.30124279,96529.0,96494.0,0.18609283]
[1732978807822,0.30124279,96529.0,96491.0,0.3608]
[1732978807823,0.051794,96492.0,96491.0,0.3608]
[1732978808108,0.051794,96492.0,96491.0,0.4898]
[1732978808903,0.051794,96492.0,96491.0,0.541594]
[1732978809110,0.0333,96505.0,96491.0,0.4898]
[1732978809415,0.0333,96505.0,96492.0,0.129]
[1732978809416,0.051793,96493.0,96492.0,0.129]
[1732978811105,0.051795,96490.0,96489.0,0.00072]
[1732978811409,0.051795,96490.0,96489.0,0.12972]
[1732978812210,0.051795,96490.0,96489.0,0.00072]
[1732978812414,0.051795,96490.0,96489.0,0.12972]
[1732978814113,0.051795,96490.0,96489.0,0.12976]
[1732978815619,0.051795,96490.0,96489.0,0.00072]
[1732978821825,0.412595,96490.0,96489.0,0.00072]
[1732978822014,0.3608,96490.0,96483.0,0.077046]
[1732978822318,0.051805,96471.0,96470.0,0.08699711]
[1732978822523,0.051805,96471.0,96470.0,0.16194]
[1732978822916,0.051805,96471.0,96470.0,0.0329]
[1732978823117,0.051805,96471.0,96470.0,0.16194]
[1732978823617,0.051805,96471.0,96470.0,0.53174]
[1732978825925,0.051805,96471.0,96470.0,0.53674]
[1732978827423,0.051805,96471.0,96470.0,0.17594]
[1732978827828,0.051805,96471.0,96470.0,0.14304]
[1732978828830,0.051805,96471.0,96470.0,0.014]
[1732978829028,0.051805,96471.0,96470.0,0.14436]
[1732978829323,0.051805,96471.0,96470.0,0.014]
[1732978829531,0.05191047,96471.0,96470.0,0.014]
[1732978858661,0.05191047,96471.0,96470.0,0.0794]
[1732978866552,0.05191047,96471.0,96470.0,0.2104]
[1732978867557,0.05191047,96471.0,96470.0,0.1779]
[1732978867965,0.05191047,96471.0,96470.0,0.145]
[1732978868562,0.08371047,96471.0,96470.0,0.145]
[1732978869068,0.08371047,96471.0,96470.0,0.014]
[1732978871862,0.08371047,96471.0,96470.0,0.065806]
[1732978871863,0.00010547,96471.0,96470.0,0.065806]
[1732978875564,0.00010547,96471.0,96470.0,0.014]
[1732978875959,0.03200547,96471.0,96470.0,0.014]
[1732978877062,0.03200547,96471.0,96470.0,0.145]
[1732978879872,0.00010547,96471.0,96470.0,0.145]
[1732978880373,0.0313,96488.0,96471.0,0.051805]
[1732978880577,0.065,96503.0,96471.0,0.051805]
[1732978880578,0.065,96503.0,96490.0,0.051795]
[1732978880874,0.065,96503.0,96491.0,0.131]
[1732978880875,0.0313,96503.0,96491.0,0.131]
[1732978881373,7.613e-05,96502.0,96491.0,0.131]
[1732978881575,7.613e-05,96502.0,96501.0,0.051789]
[1732978881875,7.613e-05,96502.0,96501.0,0.182789]
[1732978882470,7.613e-05,96502.0,96501.0,0.131]
[1732978882673,0.05186513,96502.0,96501.0,0.131]
[1732978883671,0.05386513,96502.0,96501.0,0.131]
[1732978886378,0.00207613,96502.0,96501.0,0.131]
[1732978887086,0.05386513,96502.0,96501.0,0.131]
[1732978887284,0.00207613,96502.0,96491.0,0.3608]
[1732978887583,0.00207613,96502.0,96496.0,0.051792]
[1732978887584,0.051789,96501.0,96496.0,0.051792]
[1732978887885,0.051791,96498.0,96492.0,0.182794]
[1732978888071,0.00207613,96502.0,96492.0,0.182794]
[1732978888072,0.051792,96497.0,96492.0,0.182794]
[1732978888480,0.051792,96497.0,96492.0,0.051794]
[1732978888679,0.00207613,96502.0,96495.0,0.051792]
[1732978888680,0.05386513,96502.0,96495.0,0.051792]
[1732978889679,0.05386513,96502.0,96498.0,0.051791]
[1732978889874,0.05186513,96502.0,96498.0,0.051791]
[1732978890087,0.002,96501.0,96498.0,0.051791]
[1732978890288,0.002,96501.0,96500.0,0.05179]
[1732978890489,0.05186513,96502.0,96500.0,0.05179]
[1732978890780,0.00207613,96502.0,96500.0,0.05179]
[1732978891283,7.613e-05,96502.0,96501.0,0.0305]
[1732978891579,7.613e-05,96502.0,96501.0,0.3913]
[1732978891782,0.051777,96514.0,96510.0,0.051779]
[1732978891974,0.051777,96514.0,96501.0,0.3913]
[1732978891975,0.051773,96522.0,96516.0,0.051776]
[1732978892175,0.051773,96522.0,96517.0,0.13524]
[1732978892381,0.051774,96520.0,96517.0,0.13524]
[1732978892776,0.03138213,96518.0,96517.0,0.13524]
[1732978896189,0.03138213,96518.0,96514.0,0.051777]
[1732978896383,0.03138213,96518.0,96517.0,0.13524]
[1732978896990,0.03338213,96518.0,96517.0,0.13524]
[1732978897682,0.00208213,96518.0,96517.0,0.13524]
[1732978897887,0.06912742,96540.0,96517.0,0.13524]
[1732978897888,0.051764,96538.0,96517.0,0.13524]
[1732978898090,0.051762,96542.0,96525.0,0.3608]
[1732978898385,0.0317,96549.0,96537.0,0.3608]
[1732978898687,0.051763,96540.0,96538.0,0.13524]
[1732978898891,8.866e-05,96539.0,96538.0,0.13524]
[1732978900588,8.866e-05,96539.0,96538.0,0.13624]
[1732978903090,0.05185266,96539.0,96538.0,0.13624]
[1732978904195,0.05185266,96539.0,96538.0,0.13524]
[1732978906791,0.05185266,96539.0,96537.0,0.3608]
[1732978906993,0.05185266,96539.0,96538.0,0.1352]
[1732978908190,0.05185266,96539.0,96537.0,0.3608]
[1732978908387,0.05185266,96539.0,96538.0,0.1352]
[1732978910891,0.05185266,96539.0,96537.0,0.3608]
[1732978911196,0.05185266,96539.0,96537.0,0.496]
[1732978911894,0.05185266,96539.0,96537.0,0.3608]
[1732978915899,0.051765,96536.0,96535.0,0.00012263]
[1732978916099,0.412565,96536.0,96535.0,0.00012263]
[1732978916299,0.56888328,96536.0,96535.0,0.00012263]
[1732978920100,0.56888328,96536.0,96535.0,6.3e-07]
[1732978923600,0.051765,96536.0,96535.0,6.3e-07]
[1732978926506,8.866e-05,96539.0,96535.0,6.3e-07]
[1732978926807,8.866e-05,96539.0,96537.0,0.051764]
[1732978929707,0.051764,96538.0,96537.0,0.051764]
[1732978931108,0.051764,96538.0,96537.0,0.186844]
[1732978932411,8.866e-05,96539.0,96537.0,0.186844]
[1732978933618,8.866e-05,96539.0,96538.0,0.00323721]
[1732978935215,8.866e-05,96539.0,96538.0,0.36403721]
[1732978937139,8.866e-05,96539.0,96538.0,0.3608]
[1732978937309,8.866e-05,96539.0,96538.0,0.36403697]
[1732978940723,0.412553,96560.0,96538.0,0.49911697]
[1732978941033,0.051749,96567.0,96564.0,0.05175]
[1732978941232,0.051749,96567.0,96565.0,0.13508]
[1732978941518,0.051746,96572.0,96567.0,0.051749]
[1732978941820,0.00166127,96568.0,96567.0,0.547629]
[1732978942816,0.00166127,96568.0,96567.0,0.548629]
[1732978944427,0.00166127,96568.0,96567.0,0.549629]
[1732978944821,0.00166127,96568.0,96567.0,0.548629]
[1732978945420,0.00166127,96568.0,96567.0,0.547629]
[1732978945722,0.00166127,96568.0,96567.0,0.548629]
[1732978946221,0.00166127,96568.0,96567.0,0.49688]
[1732978952134,0.00166127,96568.0,96567.0,0.13608]
[1732978952328,0.03256127,96568.0,96567.0,0.13608]
[1732978952519,0.03256127,96568.0,96567.0,0.001]
[1732978952915,0.03256127,96568.0,96567.0,0.13584]
[1732978955216,0.00166127,96568.0,96567.0,0.13584]
[1732978962829,0.00010712,96568.0,96567.0,0.13584]
[1732978963031,0.082042,96579.0,96568.0,0.051748]
[1732978963232,0.0303,96579.0,96578.0,0.3608]
[1732978963436,0.0303,96579.0,96578.0,0.49564]
[1732978965024,0.082042,96579.0,96578.0,0.49564]
[1732978966437,0.082042,96579.0,96578.0,0.49664]
[1732978968231,0.082042,96579.0,96578.0,0.13584]
[1732978973331,0.082042,96579.0,96578.0,0.001]
[1732978973530,0.082042,96579.0,96578.0,0.13584]
[1732978974546,0.082042,96579.0,96578.0,0.001]
[1732978974844,0.082042,96579.0,96578.0,0.13584]
[1732978976437,0.051742,96579.0,96578.0,0.13584]
[1732978976642,8.201e-05,96580.0,96579.0,0.051742]
[1732978978746,0.05182401,96580.0,96579.0,0.051742]
[1732978979448,0.05182401,96580.0,96579.0,0.052742]
[1732978984441,0.05182401,96580.0,96579.0,0.185662]
[1732978985243,0.05182401,96580.0,96579.0,0.13392]
[1732978986047,8.201e-05,96580.0,96579.0,0.13392]
[1732978987551,8.201e-05,96580.0,96579.0,0.16402]
[1732978990151,0.051736,96591.0,96579.0,0.16402]
[1732978990352,0.051736,96591.0,96590.0,0.3608]
[1732978990556,0.051736,96591.0,96590.0,0.49372]
[1732978991056,0.05179879,96591.0,96590.0,0.49372]
[1732978991459,0.05179879,96591.0,96590.0,0.3608]
[1732978991657,0.05179879,96591.0,96590.0,0.49372]
[1732978992453,6.279e-05,96591.0,96590.0,0.49472]
[1732978994360,6.279e-05,96591.0,96590.0,0.52512]
[1732978995353,6.279e-05,96591.0,96590.0,0.52412]
[1732978995550,6.279e-05,96591.0,96590.0,0.52512]
[1732978995955,6.279e-05,96591.0,96590.0,0.52412]
[1732978996263,6.279e-05,96591.0,96590.0,0.52512]
[1732979000659,6.279e-05,96591.0,96590.0,0.49472]
[1732979002664,0.03166279,96591.0,96590.0,0.49472]
[1732979002863,0.03166279,96591.0,96590.0,0.3618]
[1732979003055,0.03166279,96591.0,96590.0,0.49472]
[1732979006256,0.08339879,96591.0,96590.0,0.49472]
[1732979006960,0.03166279,96591.0,96590.0,0.49472]
[1732979008565,0.08339879,96591.0,96590.0,0.49472]
[1732979009652,0.03166279,96591.0,96590.0,0.3618]
[1732979009867,0.03166279,96591.0,96590.0,0.49432]
[1732979015466,6.279e-05,96591.0,96590.0,0.49432]
[1732979018561,6.279e-05,96591.0,96590.0,0.68041283]
[1732979020167,6.279e-05,96591.0,96590.0,0.49432]
[1732979022963,6.279e-05,96591.0,96590.0,0.68041283]
[1732979023366,6.279e-05,96591.0,96590.0,0.49432]
[1732979023567,6.279e-05,96591.0,96590.0,0.68041283]
[1732979024476,6.279e-05,96591.0,96590.0,0.49432]
[1732979027864,0.1,96600.0,96591.0,0.051736]
[1732979028077,0.1,96600.0,96599.0,0.3608]
[1732979028377,0.1,96600.0,96599.0,0.49332]
[1732979028873,0.1,96600.0,96599.0,0.545051]
[1732979036784,0.1,96600.0,96599.0,0.55742356]
[1732979040586,0.1,96600.0,96599.0,0.37317256]
[1732979040776,0.1,96600.0,96599.0,0.3608]
[1732979040976,0.1,96600.0,96590.0,0.41493108]
[1732979041183,0.051736,96591.0,96590.0,0.41493108]
[1732979041377,0.051736,96591.0,96590.0,0.49206281]
[1732979042475,0.051736,96591.0,96590.0,0.00010281]
[1732979042781,0.051736,96591.0,96590.0,0.13126281]
[1732979044989,0.051735,96594.0,96593.0,0.051734]
[1732979045183,0.051732,96599.0,96590.0,0.13126281]
[1732979045583,0.051732,96599.0,96598.0,0.051732]
[1732979045786,0.051732,96599.0,96598.0,0.182892]
[1732979046289,0.1,96600.0,96598.0,0.182892]
[1732979050287,0.06389752,96615.0,96608.0,0.051726]
[1732979050496,0.051723,96615.0,96609.0,0.13116]
[1732979050684,0.051723,96615.0,96612.0,0.051724]
[1732979051385,0.0322,96621.0,96610.0,0.13116]
[1732979051386,0.08392,96621.0,96610.0,0.13116]
[1732979051592,0.04468248,96621.0,96614.0,0.051723]
[1732979051891,0.04468248,96621.0,96618.0,0.051721]
[1732979052089,0.0322,96621.0,96619.0,0.13116]
[1732979053187,0.08392,96621.0,96619.0,0.13116]
[1732979054294,0.08392,96621.0,96619.0,0.18388]
[1732979058913,0.0322,96621.0,96619.0,0.18388]
[1732979059212,0.06408294,96626.0,96624.0,0.051718]
[1732979059412,0.01236594,96626.0,96624.0,0.051718]
[1732979059611,0.051714,96631.0,96625.0,0.051717]
[1732979060708,0.051714,96631.0,96627.0,0.051716]
[1732979061007,0.051714,96631.0,96624.0,0.3618]
[1732979061008,0.051714,96631.0,96628.0,0.182836]
[1732979061405,0.051714,96631.0,96628.0,0.13112]
[1732979061612,0.051714,96631.0,96629.0,0.051715]
[1732979063006,0.0120276,96633.0,96632.0,0.051714]
[1732979063414,0.00155294,96635.0,96634.0,0.051713]
[1732979065413,0.00155294,96635.0,96634.0,0.412513]
[1732979066818,0.00155294,96635.0,96634.0,0.413513]
[1732979067307,0.00155294,96635.0,96634.0,0.412513]
[1732979067513,0.00155294,96635.0,96634.0,0.413513]
[1732979069919,0.00155294,96635.0,96634.0,0.412513]
[1732979072220,0.051708,96643.0,96640.0,0.051709]
[1732979072520,0.051708,96643.0,96641.0,0.13136]
[1732979073026,0.051708,96643.0,96641.0,0.183069]
[1732979073717,0.051708,96643.0,96641.0,0.184069]
[1732979077110,0.051708,96643.0,96641.0,0.13236]
[1732979077311,0.051708,96643.0,96641.0,0.001]
[1732979077613,0.051708,96643.0,96642.0,0.13136]
[1732979080117,0.0316,96649.0,96634.0,0.051713]
[1732979080425,0.051708,96643.0,96642.0,0.001]
[1732979080624,0.051708,96643.0,96642.0,0.13236]
[1732979081418,0.051708,96643.0,96642.0,0.13136]
[1732979083119,0.051708,96643.0,96642.0,0.13236]
[1732979084418,0.051705,96649.0,96642.0,0.13236]
[1732979085018,0.051705,96649.0,96643.0,0.0303]
[1732979085218,0.051705,96648.0,96646.0,0.051706]
[1732979087427,0.051705,96648.0,96646.0,0.052706]
[1732979088137,0.051705,96648.0,96646.0,0.001]
[1732979092331,0.3608,96647.0,96646.0,0.001]
[1732979092537,0.3608,96647.0,96646.0,0.13236]
[1732979093821,0.051707,96644.0,96643.0,0.0303]
[1732979094337,0.05171,96639.0,96638.0,0.05171]
[1732979094638,0.05171,96639.0,96638.0,0.18307]
[1732979095337,0.05171,96639.0,96638.0,0.19505649]
[1732979096839,0.05171,96639.0,96638.0,0.06369649]
[1732979097136,0.05171,96639.0,96638.0,0.19505649]
[1732979100533,0.05171,96639.0,96638.0,0.14334649]